bitfinex/quotes_ETHUSD_20260108
["timestamp","ask_amount","ask_price","bid_price","bid_amount"]
[1767873494784,0.94773202,3119.6,3118.9,0.99563778]
[1767873494974,0.001,3119.4,3118.9,0.99563778]
[1767873496774,0.94873202,3119.4,3118.7,0.99563778]
[1767873497174,0.94873202,3119.4,3118.8,0.99563778]
[1767873497700,0.001,3119.4,3118.8,0.99563778]
[1767873499402,0.94873202,3119.4,3118.8,0.99563778]
[1767873503382,0.94873202,3119.4,3118.8,4.2019786]
[1767873503706,0.94873202,3119.4,3118.8,0.99563778]
[1767873507590,0.002,3119.1,3118.8,0.99563778]
[1767873507889,0.94873202,3119.4,3118.8,1.41584321]
[1767873509699,0.94873202,3119.4,3118.8,4.62219107]
[1767873510987,0.94873202,3119.4,3118.8,1.41584321]
[1767873511192,0.002,3119.9,3119.3,0.99563778]
[1767873511397,0.002,3119.9,3119.1,3.60244574]
[1767873511398,0.002,3120.2,3119.9,0.99563778]
[1767873511589,0.002,3120.2,3120.0,0.99563778]
[1767873511590,0.00035845,3120.2,3120.0,0.99563778]
[1767873511788,1.20143302,3120.7,3120.0,0.99563778]
[1767873512218,0.35743302,3120.6,3120.0,0.99563778]
[1767873512524,0.35743302,3120.6,3119.7,0.93415569]
[1767873512726,0.35743302,3120.5,3119.8,1.34812486]
[1767873513230,0.35743302,3120.5,3119.8,0.41396917]
[1767873513794,0.35743302,3120.5,3119.8,1.34812486]
[1767873513996,0.35743302,3120.5,3119.9,0.93415569]
[1767873519494,0.002,3120.2,3119.9,0.93415569]
[1767873519826,0.35943302,3120.5,3119.9,0.41395716]
[1767873521327,0.35943302,3120.5,3119.3,0.841]
[1767873521328,0.35943302,3120.5,3119.4,0.93415569]
[1767873521528,0.35943302,3120.5,3118.2,3.2069606]
[1767873521529,0.35743302,3120.2,3119.0,0.93415569]
[1767873521711,6.41125738,3120.5,3118.9,3.20618611]
[1767873521712,0.35743302,3119.9,3118.9,3.20618611]
[1767873521897,0.35743302,3119.9,3119.0,0.93415569]
[1767873522528,0.35743302,3119.9,3119.1,0.93415569]
[1767873522716,0.35743302,3119.8,3119.1,0.93415569]
[1767873528531,0.35743302,3119.6,3118.9,0.93415569]
[1767873528730,0.35743302,3119.6,3118.7,0.93415569]
[1767873529121,0.35743302,3119.8,3118.8,0.93415569]
[1767873529333,0.35743302,3119.8,3119.0,0.93415569]
[1767873529334,1.28499666,3119.8,3119.0,0.93415569]
[1767873529537,0.841,3119.8,3119.0,0.93415569]
[1767873531822,0.841,3119.8,3119.3,0.001]
[1767873532030,1.19843302,3119.8,3119.3,0.001]
[1767873534129,0.35743302,3119.7,3119.3,0.001]
[1767873536241,0.841,3119.8,3119.3,0.93515569]
[1767873536444,6.98344574,3120.6,3119.3,0.93515569]
[1767873536445,0.35743302,3120.6,3119.6,0.93415569]
[1767873536617,0.844,3120.7,3119.6,0.93415569]
[1767873536947,1.20143302,3120.7,3119.6,0.93415569]
[1767873538349,1.20143302,3120.7,3119.7,0.93415569]
[1767873539012,0.844,3120.7,3119.7,0.93415569]
[1767873539725,0.002,3120.7,3119.7,0.93415569]
[1767873540543,0.002,3120.7,3119.9,0.93415569]
[1767873543448,0.002,3120.2,3119.9,0.93415569]
[1767873543650,0.002,3120.7,3119.8,4.11542574]
[1767873543849,0.002,3120.7,3120.0,0.91013427]
[1767873546836,0.002,3120.7,3120.1,0.99217706]
[1767873548177,0.002,3120.7,3119.8,0.99217706]
[1767873551334,0.002,3120.7,3119.9,0.99217706]
[1767873551665,0.44664457,3120.7,3119.9,0.99217706]
[1767873552239,0.002,3120.7,3119.9,0.99217706]
[1767873552741,0.002,3120.7,3119.7,0.99217706]
[1767873552935,0.002,3120.7,3119.7,4.197572]
[1767873554054,0.002,3120.7,3119.9,0.99217706]
[1767873554250,0.002,3120.7,3119.5,0.99217706]
[1767873554251,3.60244574,3120.4,3119.5,0.99217706]
[1767873554455,0.36024457,3120.3,3119.6,0.99217706]
[1767873554648,3.60444574,3120.7,3119.6,0.99217706]
[1767873555067,3.2064569,3120.7,3120.2,0.001]
[1767873555452,0.002,3120.7,3120.2,0.001]
[1767873556446,3.20641247,3120.7,3120.2,0.001]
[1767873556645,6.80660856,3120.7,3120.2,0.001]
[1767873558156,3.60219609,3120.7,3120.2,0.001]
[1767873558472,0.44441961,3120.6,3120.2,0.99317706]
[1767873559475,0.44441961,3120.6,3120.2,0.001]
[1767873561582,3.6003313,3120.5,3119.8,0.99217706]
[1767873561946,3.6003313,3120.3,3119.8,0.99217706]
[1767873563358,3.6003313,3120.5,3119.8,0.99217706]
[1767873563561,4.6459073,3120.5,3119.8,0.99217706]
[1767873566956,7.85052412,3120.5,3120.1,0.001]
[1767873567159,0.002,3120.3,3120.1,0.001]
[1767873567890,0.002,3120.6,3120.2,0.99217706]
[1767873568560,3.6023313,3120.6,3120.1,0.001]
[1767873568872,3.6003313,3120.4,3119.4,0.99217706]
[1767873569180,3.6003313,3120.4,3119.6,0.99217706]
[1767873570386,0.002,3120.6,3119.8,0.99217706]
[1767873571155,0.002,3120.6,3119.9,0.99217706]
[1767873576485,0.002,3120.6,3120.0,0.97741996]
[1767873577892,0.03346861,3121.5,3120.6,0.97741996]
[1767873578224,0.03346861,3121.4,3120.3,4.57775126]
[1767873578399,0.03346861,3121.4,3120.4,0.97741996]
[1767873579665,0.002,3121.1,3120.4,0.97741996]
[1767873580095,0.002,3121.1,3120.5,0.97741996]
[1767873580475,0.002,3121.1,3120.6,0.97741996]
[1767873586687,3.6003313,3121.0,3120.4,0.97741996]
[1767873586909,0.03546861,3121.1,3120.4,0.97741996]
[1767873589933,0.002,3121.1,3120.4,0.97741996]
[1767873590806,0.03546861,3121.1,3120.4,0.97741996]
[1767873591040,0.36357999,3121.0,3120.4,0.97741996]
[1767873591351,0.03546861,3121.1,3120.4,0.97741996]
[1767873591800,0.002,3120.8,3120.4,0.97741996]
[1767873592424,0.002,3120.8,3120.5,0.97741996]
[1767873602359,0.002,3121.1,3120.8,0.99422808]
[1767873602664,0.002,3121.4,3121.0,0.99422808]
[1767873603250,0.03346861,3121.0,3120.2,0.001]
[1767873603452,4.55835532,3120.3,3119.5,0.99422808]
[1767873603654,0.95802402,3120.3,3119.7,0.99422808]
[1767873604055,0.95802402,3120.3,3119.7,4.19958036]
[1767873604351,0.96099988,3120.5,3119.8,0.90215881]
[1767873604764,1.37755117,3120.5,3119.8,0.90215881]
[1767873605171,0.41655129,3120.5,3119.9,0.90215881]
[1767873605338,0.002,3120.8,3120.0,0.90215881]
[1767873605528,0.96299988,3120.8,3120.0,0.90215881]
[1767873605728,0.96099988,3120.7,3120.0,0.90215881]
[1767873606560,0.96099988,3120.6,3119.8,0.90215881]
[1767873607069,0.96099988,3120.6,3119.9,0.90215881]
[1767873607277,0.96099988,3120.4,3119.7,0.90215881]
[1767873608530,4.56133118,3120.3,3119.7,0.90215881]
[1767873608752,0.96099988,3120.3,3119.7,0.90215881]
[1767873608960,0.93468038,3120.3,3119.7,0.90215881]
[1767873610050,4.97787555,3120.5,3119.7,0.90215881]
[1767873610368,0.96099988,3120.4,3119.7,0.90215881]
[1767873610532,0.96099988,3120.4,3119.8,0.90215881]
[1767873610735,1.77924325,3120.4,3119.8,0.90215881]
[1767873611347,0.96099988,3120.4,3119.8,0.90215881]
[1767873611855,0.41654437,3120.5,3119.8,0.90215881]
[1767873612635,0.41654437,3120.5,3119.9,0.90215881]
[1767873614239,4.16734306,3120.8,3119.9,0.90215881]
[1767873615973,4.16734306,3120.8,3120.1,0.90315881]
[1767873616336,0.96099988,3120.7,3120.1,0.90315881]
[1767873617048,4.16549164,3120.7,3120.1,0.90315881]
[1767873618665,0.96099988,3120.6,3120.1,0.001]
[1767873618966,1.69799822,3120.5,3120.1,0.001]
[1767873619371,4.9026204,3120.5,3120.1,0.001]
[1767873619590,4.9026212,3120.5,3120.1,0.001]
[1767873619776,0.96099988,3120.4,3120.1,0.001]
[1767873620852,4.16551227,3120.6,3120.1,0.001]
[1767873621053,0.41655123,3120.5,3120.1,0.001]
[1767873621283,4.58216628,3120.5,3120.1,0.001]
[1767873621490,1.37755111,3120.5,3120.1,0.001]
[1767873622484,4.58220012,3120.5,3120.1,0.001]
[1767873622689,0.96099988,3120.4,3120.1,0.001]
[1767873622857,0.96099988,3120.4,3119.5,4.10779908]
[1767873622858,1.41921989,3120.3,3119.5,0.90215881]
[1767873623056,0.45822001,3120.3,3119.8,0.90215881]
[1767873623302,0.96099988,3120.4,3119.8,0.90215881]
[1767873623479,0.96099988,3120.4,3119.4,0.90215881]
[1767873623759,0.96099988,3120.4,3119.5,0.90215881]
[1767873624470,0.96099988,3120.4,3119.4,3.2056977]
[1767873624671,0.96099988,3120.4,3119.4,4.10785651]
[1767873624890,0.96099988,3120.3,3119.4,4.10785651]
[1767873625102,0.96099988,3120.3,3119.4,0.90215881]
[1767873625562,0.96099988,3120.1,3119.4,4.10789463]
[1767873625980,0.96099988,3119.7,3119.3,0.001]
[1767873626179,0.96099988,3119.5,3118.8,0.90215881]
[1767873626383,0.45608838,3119.6,3118.8,0.90215881]
[1767873626658,0.45608838,3119.6,3118.9,0.90215881]
[1767873626870,6.40972276,3120.3,3119.3,0.90215881]
[1767873627189,1.80199988,3120.2,3119.3,0.90215881]
[1767873627554,3.20502547,3120.1,3119.7,0.001]
[1767873628490,0.96099988,3120.0,3119.7,0.001]
[1767873629579,3.20502547,3120.1,3119.7,0.001]
[1767873629887,0.50090254,3120.0,3119.7,0.001]
[1767873633862,3.70604506,3120.0,3119.7,0.001]
[1767873634087,0.50090254,3120.0,3119.7,0.001]
[1767873634292,3.70603258,3120.0,3119.7,0.001]
[1767873634887,0.50090254,3120.0,3119.7,0.001]
[1767873635088,0.37059431,3119.9,3119.7,0.001]
[1767873635685,0.50090254,3120.0,3119.7,0.001]
[1767873635998,0.843,3120.2,3119.7,0.001]
[1767873636196,0.843,3120.2,3119.7,0.92241598]
[1767873636396,0.002,3120.2,3119.7,0.92241598]
[1767873636585,0.002,3120.5,3119.9,0.92141598]
[1767873636791,0.99034602,3120.4,3119.7,0.92241598]
[1767873638179,0.002,3120.5,3119.8,0.92141598]
[1767873640204,0.002,3120.5,3120.0,0.001]
[1767873640379,0.002,3120.2,3120.0,0.001]
[1767873640578,0.74212889,3120.5,3120.0,0.001]
[1767873641101,0.99034602,3120.4,3119.7,0.001]
[1767873641302,0.99034602,3120.4,3118.3,3.20684249]
[1767873641303,0.99034602,3120.4,3119.5,0.92141598]
[1767873641605,0.99034602,3120.4,3119.0,4.47294543]
[1767873641606,0.002,3120.5,3119.8,0.92141598]
[1767873641904,0.002,3120.5,3118.9,0.92141598]
[1767873641905,0.99034602,3120.0,3118.9,0.92141598]
[1767873642131,0.99034602,3120.0,3119.2,0.92141598]
[1767873642613,0.99034602,3120.4,3119.2,0.92141598]
[1767873644081,0.99034602,3120.4,3119.4,0.92141598]
[1767873645885,0.99034602,3120.4,3118.8,0.92141598]
[1767873645886,4.5902299,3119.8,3118.8,0.92141598]
[1767873646106,0.99034602,3120.0,3119.1,0.92141598]
[1767873646417,0.99034602,3120.0,3119.2,0.92141598]
[1767873646719,0.50380152,3120.3,3119.2,0.92141598]
[1767873646720,0.99034602,3120.2,3119.2,0.92141598]
[1767873647512,1.46024393,3120.1,3119.2,0.92141598]
[1767873647915,0.46989791,3120.1,3119.2,0.92141598]
[1767873648119,0.50380152,3120.3,3119.2,0.92141598]
[1767873648322,1.49414754,3120.3,3119.3,0.92141598]
[1767873648523,0.99034602,3120.2,3119.3,0.92141598]
[1767873649633,3.59988388,3119.5,3118.8,0.92141598]
[1767873649933,0.99034602,3119.8,3118.8,0.92141598]
[1767873650111,0.35998839,3119.8,3119.0,0.92141598]
[1767873650608,1.35033441,3119.8,3119.0,0.92141598]
[1767873651937,0.35998839,3119.8,3119.1,0.92141598]
[1767873652121,0.99034602,3120.3,3119.3,0.92141598]
[1767873653043,4.19519084,3120.3,3119.3,0.92141598]
[1767873653360,0.99034602,3120.0,3119.3,0.92141598]
[1767873653539,0.45902299,3119.9,3119.3,0.92141598]
[1767873656044,0.99034602,3120.2,3119.3,0.92141598]
[1767873657325,0.99034602,3120.1,3119.3,0.92141598]
[1767873660666,4.5902299,3119.9,3119.3,0.92141598]
[1767873660960,0.99034602,3119.5,3118.4,0.92141598]
[1767873661172,5.04925289,3119.4,3118.6,0.92141598]
[1767873661328,4.5902299,3119.4,3118.6,0.92141598]
[1767873661523,0.99034602,3119.6,3118.7,0.92141598]
[1767873662758,0.96116499,3119.9,3118.8,0.93341436]
[1767873662931,1.80216499,3120.1,3118.9,0.90135075]
[1767873663134,0.96116499,3120.0,3118.9,0.90135075]
[1767873663756,0.96116499,3119.9,3118.9,0.90135075]
[1767873665737,0.96116499,3119.6,3118.9,0.90135075]
[1767873668848,0.96588258,3119.9,3118.9,0.90135075]
[1767873669059,0.96588258,3119.7,3118.1,0.03307081]
[1767873669236,0.96588258,3118.9,3118.2,0.92780006]
[1767873669836,0.96588258,3119.3,3118.2,0.92780006]
[1767873670334,0.96588258,3119.1,3118.2,0.92780006]
[1767873670536,0.96588258,3118.9,3118.2,0.92780006]
[1767873671565,0.96588258,3118.8,3118.1,0.001]
[1767873671740,0.96588258,3118.5,3118.1,0.001]
[1767873673989,1.80788258,3118.8,3118.1,0.001]
[1767873674189,0.96588258,3119.4,3118.7,0.92780006]
[1767873674338,0.67446023,3119.5,3118.7,0.92780006]
[1767873674541,0.96588258,3119.5,3118.7,0.92780006]
[1767873674963,0.96588258,3119.5,3118.2,0.92780006]
[1767873675561,0.96588258,3119.5,3118.5,0.92780006]
[1767873676162,0.844,3119.6,3118.5,0.92780006]
[1767873676457,1.80988258,3119.6,3118.5,0.92780006]
[1767873676776,0.50153349,3119.5,3118.5,0.92780006]
[1767873677348,1.46741607,3119.5,3118.5,0.92780006]
[1767873677745,3.60276558,3119.4,3118.5,0.92780006]
[1767873679946,4.56864816,3119.4,3118.5,0.92780006]
[1767873681363,0.50153349,3119.5,3118.5,0.92780006]
[1767873681546,5.07018165,3119.5,3118.6,0.92780006]
[1767873683364,3.60276558,3119.3,3118.6,0.92780006]
[1767873684778,4.67306202,3119.5,3118.1,0.001]
[1767873684779,4.56864816,3118.7,3118.1,0.001]
[1767873684981,3.60276558,3118.6,3118.1,0.001]
[1767873685282,3.60276558,3118.6,3118.1,0.92880006]
[1767873685455,0.45686482,3118.5,3118.1,0.92880006]
[1767873686578,0.96588258,3118.7,3118.1,0.92880006]
[1767873686782,4.56864816,3118.6,3118.1,0.001]
[1767873687386,4.56864816,3118.2,3117.5,0.92780006]
[1767873687760,0.96588258,3118.2,3117.6,0.92780006]
[1767873687962,1.4227474,3118.2,3117.6,0.92780006]
[1767873688162,3.60276558,3118.0,3117.4,0.92980006]
[1767873688464,4.0596304,3118.2,3117.4,0.92980006]
[1767873689066,0.45686482,3118.2,3117.5,0.92780006]
[1767873690284,1.4227474,3118.2,3117.5,0.92780006]
[1767873690685,5.02551298,3118.2,3117.5,0.92780006]
[1767873690913,0.5025513,3118.1,3117.5,0.92780006]
[1767873694819,1.40796342,3118.1,3117.5,0.92780006]
[1767873695024,0.90541212,3118.0,3117.5,0.92780006]
[1767873695533,0.90541212,3118.0,3117.5,4.13546187]
[1767873695684,0.90541212,3118.0,3117.5,0.92780006]
[1767873696314,0.90541212,3118.0,3117.5,4.13549299]
[1767873696518,0.90541212,3118.3,3117.5,4.13549299]
[1767873696689,0.90541212,3118.1,3117.5,4.13549299]
[1767873697219,0.17474121,3118.2,3117.6,0.90512649]
[1767873697718,1.74741212,3118.4,3117.6,4.50789207]
[1767873698019,0.90741212,3119.4,3118.4,0.90512649]
[1767873698227,0.002,3119.4,3118.8,0.90512649]
[1767873698407,0.90741212,3119.4,3118.6,4.11168866]
[1767873698582,0.90741212,3119.4,3118.6,4.13342735]
[1767873699207,0.90741212,3119.4,3118.7,0.90512649]
[1767873699516,1.35862989,3119.4,3118.7,0.90512649]
[1767873700214,0.45321777,3119.4,3118.7,0.90512649]
[1767873700591,0.90541212,3119.3,3118.7,0.90512649]
[1767873701518,0.001,3119.1,3118.7,0.90512649]
[1767873712832,0.001,3119.1,3118.7,4.11155213]
[1767873713338,0.001,3118.8,3118.7,4.11155213]
[1767873713638,0.001,3119.1,3118.7,4.11155213]
[1767873715230,0.001,3119.1,3118.7,0.90512649]
[1767873715444,0.001,3119.1,3118.1,4.04904589]
[1767873715445,0.90641212,3119.1,3118.5,3.20661562]
[1767873715647,0.90641212,3119.1,3118.0,0.90512649]
[1767873715847,0.90541212,3118.9,3118.1,4.11219415]
[1767873716148,0.90541212,3118.9,3118.2,3.20695243]
[1767873716342,0.90541212,3118.9,3118.2,0.90512649]
[1767873716643,1.08025333,3119.0,3118.3,0.90512649]
[1767873716848,1.08025333,3119.0,3118.3,4.11198618]
[1767873717048,1.08025333,3119.0,3118.4,4.11189457]
[1767873717740,0.17484121,3119.0,3118.5,0.90512649]
[1767873717947,0.001,3119.1,3118.5,0.90512649]
[1767873718147,0.90741212,3119.4,3119.1,0.90512649]
[1767873718148,0.002,3119.4,3119.1,0.90512649]
[1767873718446,0.002,3119.6,3119.3,0.90393937]
[1767873720162,0.002,3119.6,3119.0,0.90512649]
[1767873720516,0.002,3119.6,3119.1,0.90512649]
[1767873721948,0.002,3119.9,3119.6,0.90512649]
[1767873722319,0.002,3119.9,3119.0,7.2542851]
[1767873722320,0.002,3119.9,3119.1,0.92063821]
[1767873722521,0.002,3119.9,3119.3,0.92063821]
[1767873725625,0.002,3119.6,3119.3,0.92063821]
[1767873725843,0.002,3119.9,3119.3,0.92063821]
[1767873726048,0.002,3119.9,3119.4,0.92063821]
[1767873726953,0.002,3119.9,3119.5,0.92063821]
[1767873727249,0.002,3119.9,3119.6,0.92063821]
[1767873734967,3.20666479,3120.5,3119.9,0.94952945]
[1767873734968,0.002,3120.5,3119.9,0.94952945]
[1767873735140,0.91969372,3120.5,3119.4,0.37214216]
[1767873735338,0.91769372,3120.1,3119.0,0.95052945]
[1767873735560,0.91769372,3120.1,3119.1,4.89671962]
[1767873735740,0.91769372,3120.1,3119.3,3.20578836]
[1767873735945,0.91769372,3120.1,3119.4,3.20567195]
[1767873736258,0.91769372,3120.1,3119.2,3.23795278]
[1767873737063,0.91769372,3120.1,3119.2,3.20589328]
[1767873737270,0.91769372,3120.1,3119.3,0.37105335]
[1767873737565,0.91769372,3120.1,3119.5,0.001]
[1767873737875,3.60060607,3120.2,3119.5,0.001]
[1767873737876,0.91769372,3119.7,3119.5,0.001]
[1767873740863,0.002,3119.8,3119.5,0.001]
[1767873744864,0.002,3119.8,3119.5,0.95052945]
[1767873745364,0.002,3119.8,3119.5,0.001]
[1767873747364,0.91769372,3119.6,3118.5,0.94952945]
[1767873747563,0.91769372,3119.2,3118.5,0.94952945]
[1767873748076,0.91769372,3119.2,3118.6,0.94952945]
[1767873748684,0.91769372,3119.2,3117.9,0.03207286]
[1767873748837,0.91769372,3119.2,3118.3,3.20679112]
[1767873749177,0.91769372,3119.2,3118.4,0.03206772]
[1767873749379,0.91769372,3119.2,3118.4,3.23881773]
[1767873749940,0.91769372,3119.2,3118.5,0.94952945]
[1767873751382,4.51883852,3118.7,3118.1,4.15658965]
[1767873751678,3.6011448,3119.0,3118.2,0.94952945]
[1767873751679,0.91769372,3118.9,3118.2,0.94952945]
[1767873752387,0.91694381,3118.2,3117.4,0.002]
[1767873752683,0.91694381,3117.4,3116.2,0.95810994]
[1767873752984,0.00199999,3115.8,3115.5,0.95810994]
[1767873754080,0.00199999,3115.8,3115.5,0.002]
[1767873754547,0.36231447,3115.8,3115.0,0.002]
[1767873754755,0.00199999,3115.8,3115.0,3.21226749]
[1767873755269,0.00199999,3115.8,3115.0,0.002]
[1767873755588,0.00199999,3115.8,3115.0,0.95810994]
[1767873755789,0.00199999,3115.8,3115.1,0.03210169]
[1767873756084,0.00199999,3115.8,3115.0,0.95810994]
[1767873757173,0.9189438,3115.8,3115.0,0.002]
[1767873757365,0.9169438,3115.8,3115.0,0.002]
[1767873757885,0.9169438,3115.8,3115.0,0.95810994]
[1767873758275,0.9169438,3115.8,3115.0,0.002]
[1767873758988,1.7589438,3115.8,3115.0,0.002]
[1767873759186,0.17589438,3115.7,3115.0,0.002]
[1767873759358,1.09283819,3115.7,3115.0,0.002]
[1767873760661,0.91694381,3116.9,3115.0,0.99021266]
[1767873760868,0.91694381,3116.7,3115.0,0.95810994]
[1767873761072,0.91694381,3116.7,3115.2,0.95610994]
[1767873761268,0.91694381,3116.5,3115.2,0.95610994]
[1767873761475,0.17589438,3116.6,3115.2,0.95610994]
[1767873761476,0.91694381,3116.3,3115.2,0.95610994]
[1767873761669,0.91694381,3116.3,3115.3,0.002]
[1767873762180,0.91694381,3116.3,3115.3,4.16806602]
[1767873762386,0.91694381,3116.3,3115.4,0.95610994]
[1767873762968,0.91694381,3116.2,3115.3,0.002]
[1767873763367,1.41372237,3116.2,3115.3,0.002]
[1767873764196,0.91694381,3116.2,3115.3,0.002]
[1767873765500,0.91694381,3116.2,3115.3,0.95810994]
[1767873766073,0.91694381,3116.2,3115.3,4.16806138]
[1767873767070,0.91694381,3116.2,3115.3,0.95810994]
[1767873769909,0.91694381,3116.2,3115.3,4.16806942]
[1767873770094,0.91694381,3116.2,3115.4,0.95610994]
[1767873770292,0.91694381,3116.8,3115.5,0.98820751]
[1767873770490,0.842,3116.7,3115.5,0.98820751]
[1767873770683,0.91694381,3117.0,3115.5,0.98820751]
[1767873771029,0.91694381,3117.4,3115.8,4.63218046]
[1767873771183,0.91694381,3117.8,3115.9,0.95610994]
[1767873771383,1.75894381,3117.7,3116.1,0.95610994]
[1767873771702,0.91694381,3117.6,3116.2,0.95610994]
[1767873771896,0.91694381,3117.6,3116.3,4.16504361]
[1767873772303,0.91694381,3117.6,3116.4,0.95610994]
[1767873774293,0.91694381,3117.6,3116.5,0.95610994]
[1767873774518,0.91694381,3117.4,3116.5,0.95610994]
[1767873775018,0.001,3117.3,3116.5,0.95610994]
[1767873775918,0.91794381,3117.3,3116.5,0.95610994]
[1767873776114,0.91794381,3117.3,3116.3,4.16498974]
[1767873776621,0.91794381,3117.3,3116.4,3.20882159]
[1767873776820,0.91794381,3117.3,3116.3,4.16500056]
[1767873776994,0.91694381,3117.2,3116.3,4.16500056]
[1767873777608,0.91694381,3117.2,3116.4,0.95610994]
[1767873777923,1.75894381,3117.2,3116.4,0.95610994]
[1767873778618,0.842,3117.2,3116.5,0.95610994]
[1767873781063,0.842,3117.2,3116.6,0.95610994]
[1767873781223,0.001,3117.3,3116.8,0.95610994]
[1767873781724,0.001,3117.3,3116.5,6.41745374]
[1767873781725,0.45180886,3118.1,3117.3,0.95610994]
[1767873781896,0.842,3117.9,3117.3,0.95610994]
[1767873784128,0.842,3117.9,3117.1,0.98095419]
[1767873784497,0.92919306,3117.8,3116.9,0.91204853]
[1767873784830,0.92919306,3117.8,3116.6,0.91204853]
[1767873785608,0.92919306,3117.8,3116.7,3.20852183]
[1767873787235,0.92919306,3117.8,3116.7,6.41704366]
[1767873787530,0.93019306,3117.5,3116.7,3.20852183]
[1767873788744,0.001,3117.5,3116.8,0.91204853]
[1767873788917,0.001,3117.5,3116.9,0.91204853]
[1767873789438,0.92919306,3117.4,3116.7,3.20852183]
[1767873791612,0.92919306,3117.4,3116.7,4.12057036]
[1767873792243,0.92919306,3117.4,3116.7,7.32909219]
[1767873795326,0.92919306,3117.2,3116.2,4.1210327]
[1767873795628,0.92919306,3117.2,3116.3,0.91204853]
[1767873795818,0.92919306,3117.2,3116.4,4.12086845]
[1767873796017,1.10631237,3117.2,3116.4,4.12086845]
[1767873796218,1.10631237,3117.2,3116.5,0.91204853]
[1767873798452,0.92919306,3117.1,3116.2,0.91204853]
[1767873798743,0.92919306,3117.1,3116.1,3.20907576]
[1767873798918,0.92919306,3117.1,3116.1,0.91204853]
[1767873799119,0.92919306,3117.0,3116.1,0.91204853]
[1767873799333,0.92919306,3117.0,3116.8,0.002]
[1767873801069,0.842,3117.1,3116.8,0.002]
[1767873801839,1.77119306,3117.1,3116.8,0.002]
[1767873802037,0.92919306,3117.1,3116.8,0.002]
[1767873802226,1.1240243,3117.1,3116.8,0.002]
[1767873808574,1.1240243,3117.1,3116.5,0.002]
[1767873810772,1.1240243,3117.1,3116.5,0.91404853]
[1767873811754,1.1240243,3117.1,3116.8,0.002]
[1767873812557,0.96616535,3117.0,3116.8,0.002]
[1767873812778,3.40294845,3117.1,3116.5,0.002]
[1767873812779,0.96616535,3116.8,3116.5,0.002]
[1767873815155,0.96616535,3117.0,3116.5,0.002]
[1767873816997,0.19483124,3117.1,3116.5,0.96561616]
[1767873817170,0.842,3117.2,3116.5,0.96561616]
[1767873820308,0.842,3117.2,3116.5,0.002]
[1767873820309,0.96616535,3116.9,3116.5,0.002]
[1767873820761,0.96616535,3117.1,3116.5,0.002]
[1767873821667,0.96616535,3116.8,3116.5,0.002]
[1767873821869,0.001,3117.5,3116.8,0.96361616]
[1767873822074,0.001,3117.5,3117.0,0.96361616]
[1767873824189,3.60829377,3117.1,3116.5,0.96561616]
[1767873824396,4.57445912,3117.3,3116.8,0.002]
[1767873824574,0.001,3117.2,3116.8,0.002]
[1767873824774,0.45854591,3117.2,3116.8,0.002]
[1767873825474,1.42471126,3117.2,3116.8,0.002]
[1767873826162,1.42471126,3117.2,3116.5,0.96561616]
[1767873826163,4.57445912,3116.9,3116.5,0.002]
[1767873828206,0.96616535,3116.8,3116.5,0.002]
[1767873830703,0.96616535,3116.3,3115.7,0.96361616]
[1767873830903,3.60829377,3116.2,3115.7,0.96361616]
[1767873831416,0.96616535,3116.3,3115.7,0.96361616]
[1767873831713,0.842,3116.5,3116.0,0.96361616]
[1767873831877,0.45744591,3116.7,3116.0,0.96361616]
[1767873832084,0.842,3116.8,3116.1,0.96361616]
[1767873832278,1.80816535,3116.8,3116.1,0.96361616]
[1767873833417,1.80816535,3116.8,3116.2,0.96361616]
[1767873834382,3.60829377,3116.5,3116.0,0.96361616]
[1767873834582,4.57445912,3116.5,3115.8,0.96361616]
[1767873834895,0.96616535,3116.5,3115.8,4.1730446]
[1767873835282,0.96616535,3116.5,3115.6,3.21165388]
[1767873835283,0.96616535,3116.5,3115.9,0.96361616]
[1767873835714,0.96616535,3116.7,3115.9,0.96361616]
[1767873836192,0.96616535,3116.7,3116.0,0.96361616]
[1767873836396,0.001,3116.5,3116.0,0.96361616]
[1767873837218,0.96616535,3116.0,3115.6,0.002]
[1767873837420,0.96616535,3115.6,3115.0,0.002]
[1767873837593,3.60829377,3115.3,3115.0,0.002]
[1767873837921,0.96616535,3115.3,3115.0,0.002]
[1767873838090,0.96616535,3115.2,3113.9,3.60829377]
[1767873838290,1.42361126,3115.2,3114.4,0.96361616]
[1767873838486,0.96616535,3115.2,3114.5,3.21075011]
[1767873838721,0.96616535,3115.2,3114.4,4.17449647]
[1767873838913,0.96616535,3115.2,3114.4,0.96361616]
[1767873839418,0.96616535,3115.2,3114.4,4.17448054]
[1767873840023,0.96616535,3115.2,3114.4,4.17447508]
[1767873840226,0.96616535,3115.6,3114.5,0.96361616]
[1767873840524,0.96616535,3115.3,3114.0,1.80761616]
[1767873840694,0.96616535,3115.3,3114.1,0.96361616]
[1767873840695,0.96616535,3115.2,3114.1,0.96361616]
[1767873841797,0.96616535,3115.2,3114.2,0.96361616]
[1767873842323,0.96740175,3115.1,3114.0,0.95441094]
[1767873842622,1.14821829,3115.1,3114.0,0.002]
[1767873843218,1.14821829,3115.1,3114.0,0.95441094]
[1767873843417,3.2088307,3116.4,3114.5,0.95241094]
[1767873843616,0.001,3116.5,3115.0,0.95241094]
[1767873843928,0.001,3116.5,3115.2,0.95241094]
[1767873844641,0.001,3116.5,3115.4,0.93214333]
[1767873844796,0.001,3116.5,3115.6,0.93214333]
[1767873845717,0.001,3116.5,3115.8,0.93214333]
[1767873845901,0.001,3116.5,3115.9,0.93214333]
[1767873846108,0.001,3116.5,3115.6,4.14176117]
[1767873847213,0.001,3116.5,3115.6,0.93214333]
[1767873847708,0.001,3116.5,3115.6,4.14179274]
[1767873848032,0.001,3116.5,3115.7,0.93214333]
[1767873848340,0.001,3116.5,3115.9,0.002]
[1767873849422,0.97933012,3116.5,3115.9,0.002]
[1767873849825,0.97833012,3116.4,3114.4,0.93214333]
[1767873850023,0.97833012,3116.4,3115.2,0.93214333]
[1767873850412,0.97833012,3116.4,3115.3,0.93214333]
[1767873850620,4.0527376,3116.5,3115.7,0.93214333]
[1767873850621,0.50310677,3116.3,3115.7,0.93214333]
[1767873850821,0.844,3116.5,3115.8,0.93214333]
[1767873851024,0.001,3116.5,3115.8,0.93214333]
[1767873851832,0.001,3116.5,3116.0,0.93214333]
[1767873853511,0.001,3117.2,3116.5,0.93214333]
[1767873853836,0.001,3117.2,3115.9,6.41869122]
[1767873853837,0.97933012,3117.2,3116.0,4.14134622]
[1767873854035,0.97933012,3117.2,3116.1,0.93214333]